bitfinex-derivatives/quotes_ETHF0:USTF0_20260104
["timestamp","ask_amount","ask_price","bid_price","bid_amount"]
[1767547952783,0.00364656,3141.1,3139.6,0.13670024]
[1767547996026,0.00364656,3141.1,3139.6,0.29602024]
[1767547996220,0.00364656,3141.1,3139.7,0.13724648]
[1767548004632,0.00364656,3141.1,3139.7,0.92454513]
[1767548005628,0.00364656,3141.1,3139.8,0.13724648]
[1767548005830,0.00364656,3141.1,3139.8,0.13989415]
[1767548008737,0.00364656,3141.1,3140.4,0.13724648]
[1767548011333,0.15921,3141.8,3140.4,0.13724648]
[1767548012324,0.16262147,3141.8,3140.7,0.14354941]
[1767548013533,0.00341147,3141.8,3140.7,0.14354941]
[1767548013735,0.00341147,3141.8,3141.0,0.14354941]
[1767548041262,0.78729865,3141.7,3141.0,0.14354941]
[1767548042161,0.78729865,3141.4,3140.6,0.14365654]
[1767548042462,0.78729865,3141.7,3140.6,0.14365654]
[1767548042662,0.00341147,3141.8,3140.6,0.14365654]
[1767548043461,0.00341147,3141.8,3140.6,0.93095519]
[1767548043654,0.00341147,3141.8,3140.7,0.14365654]
[1767548047977,0.78729865,3141.3,3140.3,0.14365654]
[1767548048163,6.16262147,3141.8,3140.3,0.14365654]
[1767548048164,0.78729865,3141.6,3140.3,0.14365654]
[1767548053077,0.16262147,3141.8,3140.3,0.14365654]
[1767548053374,0.78729865,3141.3,3140.3,0.14365654]
[1767548059272,0.78729865,3141.6,3140.3,0.14365654]
[1767548064478,0.15922,3141.7,3140.3,0.14365654]
[1767548078685,0.97938368,3141.6,3140.3,0.14365654]
[1767548078886,0.15922,3141.7,3140.3,0.14365654]
[1767548079187,0.97938368,3141.6,3140.3,0.14365654]
[1767548079385,0.15922,3141.7,3140.3,0.14365654]
[1767548079587,0.97943252,3141.6,3140.3,0.14365654]
[1767548079884,0.15922,3141.7,3140.3,0.14365654]
[1767548080084,0.97943252,3141.6,3140.3,0.14365654]
[1767548080287,0.15922,3141.7,3140.3,0.14365654]
[1767548080485,0.97947363,3141.6,3140.3,0.14365654]
[1767548080684,0.15922,3141.7,3140.3,0.14365654]
[1767548080884,0.97947363,3141.6,3140.3,0.14365654]
[1767548081084,0.15922,3141.7,3140.3,0.14365654]
[1767548081283,0.97947232,3141.6,3140.3,0.14365654]
[1767548081484,0.15922,3141.7,3140.3,0.14365654]
[1767548081786,0.97952069,3141.6,3140.3,0.14365654]
[1767548081982,0.15922,3141.7,3140.3,0.14365654]
[1767548082183,0.97952069,3141.6,3140.3,0.14365654]
[1767548082384,0.15922,3141.7,3140.3,0.14365654]
[1767548082583,0.97958293,3141.6,3140.3,0.14365654]
[1767548082776,0.15922,3141.7,3140.3,0.14365654]
[1767548082982,0.97958293,3141.6,3140.3,0.14365654]
[1767548083182,0.15922,3141.7,3140.3,0.14365654]
[1767548083388,0.97967869,3141.6,3140.3,0.14365654]
[1767548083587,0.15922,3141.7,3140.3,0.14365654]
[1767548083887,0.97967869,3141.6,3140.3,0.14365654]
[1767548084087,0.15922,3141.7,3140.3,0.14365654]
[1767548084391,0.97967868,3141.6,3140.3,0.14365654]
[1767548084593,0.15922,3141.7,3140.3,0.14365654]
[1767548084792,0.97973122,3141.6,3140.3,0.14365654]
[1767548084990,0.15922,3141.7,3140.3,0.14365654]
[1767548085185,0.97973122,3141.6,3140.3,0.14365654]
[1767548085386,0.15922,3141.7,3140.3,0.14365654]
[1767548085587,0.97976139,3141.6,3140.3,0.14365654]
[1767548085787,0.15922,3141.7,3140.3,0.14365654]
[1767548085986,0.97976139,3141.6,3140.3,0.14365654]
[1767548086187,0.15922,3141.7,3140.3,0.14365654]
[1767548086487,0.97853595,3141.6,3140.3,0.14365654]
[1767548086687,0.15922,3141.7,3140.3,0.14365654]
[1767548086897,0.97853595,3141.6,3140.3,0.14365654]
[1767548087087,0.15922,3141.7,3140.3,0.14365654]
[1767548087287,0.97853751,3141.6,3140.3,0.14365654]
[1767548087486,0.15922,3141.7,3140.3,0.14365654]
[1767548087686,0.97862079,3141.6,3140.3,0.14365654]
[1767548087888,0.15922,3141.7,3140.3,0.14365654]
[1767548088089,0.97862104,3141.6,3140.3,0.14365654]
[1767548088288,0.15922,3141.7,3140.3,0.14365654]
[1767548088584,0.9786222,3141.6,3140.3,0.14365654]
[1767548088783,0.15922,3141.7,3140.3,0.14365654]
[1767548088986,0.97862169,3141.6,3140.3,0.14365654]
[1767548089283,0.15922,3141.7,3140.3,0.14365654]
[1767548089486,0.9786245,3141.6,3140.3,0.14365654]
[1767548089688,0.15922,3141.7,3140.3,0.14365654]
[1767548089887,0.97862424,3141.6,3140.3,0.14365654]
[1767548090091,0.15922,3141.7,3140.3,0.14365654]
[1767548090292,0.97863731,3141.6,3140.3,0.14365654]
[1767548090494,0.15922,3141.7,3140.3,0.14365654]
[1767548090694,0.97863095,3141.6,3140.3,0.14365654]
[1767548090886,0.15922,3141.7,3140.3,0.14365654]
[1767548091097,0.97863095,3141.6,3140.3,0.14365654]
[1767548091291,0.15922,3141.7,3140.3,0.14365654]
[1767548091490,0.97862572,3141.6,3140.3,0.14365654]
[1767548091698,0.15922,3141.7,3140.3,0.14365654]
[1767548091899,0.97862572,3141.6,3140.3,0.14365654]
[1767548092090,0.15922,3141.7,3140.3,0.14365654]
[1767548092290,0.97862598,3141.6,3140.3,0.14365654]
[1767548092494,0.15922,3141.7,3140.3,0.14365654]
[1767548092691,0.97861985,3141.6,3140.3,0.14365654]
[1767548092895,0.15922,3141.7,3140.3,0.14365654]
[1767548093096,0.97861985,3141.6,3140.3,0.14365654]
[1767548093299,0.15922,3141.7,3140.3,0.14365654]
[1767548093499,0.97860351,3141.6,3140.3,0.14365654]
[1767548093795,0.15922,3141.7,3140.3,0.14365654]
[1767548093988,0.97860432,3141.6,3140.3,0.14365654]
[1767548094190,0.15922,3141.7,3140.3,0.14365654]
[1767548094390,0.97860432,3141.6,3140.3,0.14365654]
[1767548094590,0.15922,3141.7,3140.3,0.14365654]
[1767548094798,0.97860216,3141.6,3140.3,0.14365654]
[1767548094998,0.15922,3141.7,3140.3,0.14365654]
[1767548095188,0.97860216,3141.6,3140.3,0.14365654]
[1767548095391,0.15922,3141.7,3140.3,0.14365654]
[1767548095594,0.97860152,3141.6,3140.3,0.14365654]
[1767548095794,0.15922,3141.7,3140.3,0.14365654]
[1767548095997,0.97860149,3141.6,3140.3,0.14365654]
[1767548096198,0.15922,3141.7,3140.3,0.14365654]
[1767548096392,0.97860159,3141.6,3140.3,0.14365654]
[1767548096596,0.15922,3141.7,3140.3,0.14365654]
[1767548096797,0.9786005,3141.6,3140.3,0.14365654]
[1767548096996,0.15922,3141.7,3140.3,0.14365654]
[1767548097196,0.97860049,3141.6,3140.3,0.14365654]
[1767548097396,0.15922,3141.7,3140.3,0.14365654]
[1767548097597,0.97859934,3141.6,3140.3,0.14365654]
[1767548097797,0.15922,3141.7,3140.3,0.14365654]
[1767548098096,0.97859934,3141.6,3140.3,0.14365654]
[1767548098296,0.15922,3141.7,3140.3,0.14365654]
[1767548098498,0.97859828,3141.6,3140.3,0.14365654]
[1767548098698,0.15922,3141.7,3140.3,0.14365654]
[1767548098898,0.97859828,3141.6,3140.3,0.14365654]
[1767548099098,0.15922,3141.7,3140.3,0.14365654]
[1767548099300,0.97859828,3141.6,3140.3,0.14365654]
[1767548099501,0.15922,3141.7,3140.3,0.14365654]
[1767548099699,0.97859696,3141.6,3140.3,0.14365654]
[1767548099899,0.15922,3141.7,3140.3,0.14365654]
[1767548100107,0.97859722,3141.6,3140.3,0.14365654]
[1767548100310,0.15922,3141.7,3140.3,0.14365654]
[1767548100508,0.9785961,3141.6,3140.3,0.14365654]
[1767548100709,0.15922,3141.7,3140.3,0.14365654]
[1767548100901,0.9785961,3141.6,3140.3,0.14365654]
[1767548101103,0.15922,3141.7,3140.3,0.14365654]
[1767548101302,0.9785961,3141.6,3140.3,0.14365654]
[1767548101502,0.15922,3141.7,3140.3,0.14365654]
[1767548101702,0.97859556,3141.6,3140.3,0.14365654]
[1767548101903,0.15922,3141.7,3140.3,0.14365654]
[1767548102121,0.97859564,3141.6,3140.3,0.14365654]
[1767548102418,0.15922,3141.7,3140.3,0.14365654]
[1767548102618,0.97859479,3141.6,3140.3,0.14365654]
[1767548102821,0.15922,3141.7,3140.3,0.14365654]
[1767548103024,0.97859196,3141.6,3140.3,0.14365654]
[1767548103223,0.15922,3141.7,3140.3,0.14365654]
[1767548103424,0.97858915,3141.6,3140.3,0.14365654]
[1767548103622,0.15922,3141.7,3140.3,0.14365654]
[1767548112737,0.00341147,3141.8,3140.3,0.14365654]
[1767548123640,0.00341147,3141.8,3140.5,0.1339645]
[1767548123845,0.00341147,3141.8,3140.7,0.1339645]
[1767548124048,4.327,3142.4,3140.7,0.1339645]
[1767548124435,0.15918,3142.5,3140.8,0.1339645]
[1767548124642,3.185,3142.9,3141.5,0.1339645]
[1767548124837,0.97839493,3142.8,3141.5,0.1339645]
[1767548125039,0.56200505,3142.7,3142.1,0.78641299]
[1767548125244,0.00291482,3142.8,3142.2,0.78641299]
[1767548125551,0.00291482,3142.8,3142.1,0.00282792]
[1767548126345,0.13720431,3143.3,3142.2,6.78641299]
[1767548126550,0.13720431,3143.3,3142.2,0.78641299]
[1767548127250,0.14104355,3143.3,3142.2,0.78641299]
[1767548131040,0.14104355,3143.3,3142.1,0.00282792]
[1767548131041,0.14191692,3143.0,3142.1,0.00282792]
[1767548132548,0.14191692,3143.0,3141.1,0.15925]
[1767548132847,0.14191692,3142.4,3141.1,0.94566299]
[1767548133150,0.14191692,3142.4,3141.4,0.78641299]
[1767548133549,0.14191692,3142.4,3141.4,0.78921325]
[1767548134247,0.14462713,3143.0,3141.4,0.78921325]
[1767548134444,0.14462713,3142.8,3141.7,0.78641299]
[1767548142453,0.14462713,3143.2,3141.7,6.78641299]
[1767548142650,0.14462713,3143.2,3142.0,0.78641299]
[1767548146268,0.14462713,3143.2,3141.8,0.78641299]
[1767548146457,0.14462713,3143.2,3141.6,0.15922]
[1767548146659,0.14462713,3143.2,3141.7,0.78641299]
[1767548147359,0.14462713,3143.2,3142.0,0.78641299]
[1767548147561,0.14462713,3143.2,3142.3,0.78641299]
[1767548148858,0.00383924,3143.3,3142.3,0.78641299]
[1767548152366,0.14846637,3143.3,3142.0,0.78641299]
[1767548153561,0.14462713,3143.2,3141.8,0.15921]
[1767548160276,0.14386591,3142.9,3141.8,0.15921]
[1767548160773,0.14386591,3142.6,3141.4,0.00280026]
[1767548161272,0.14386591,3142.6,3141.4,0.78921325]
[1767548161670,0.14386591,3142.6,3141.7,0.78641299]
[1767548162562,0.14386591,3142.6,3141.4,0.00280026]
[1767548162765,0.14386591,3142.2,3141.4,0.00280026]
[1767548162965,0.01377007,3142.2,3141.4,0.00280026]
[1767548169486,0.14386591,3142.1,3141.4,0.00280026]
[1767548170175,6.0,3142.2,3140.5,0.78641299]
[1767548170176,0.14386591,3141.9,3140.5,0.78641299]
[1767548171173,0.14386591,3141.9,3140.5,0.79051137]
[1767548172377,0.14386591,3141.9,3140.5,0.00409838]
[1767548177282,0.9302789,3141.6,3140.5,0.00409838]
[1767548177874,0.14386591,3141.6,3140.5,0.00409838]
[1767548203502,0.01423847,3141.6,3140.5,0.00409838]
[1767548203698,0.15918,3142.4,3140.5,0.00409838]
[1767548203891,0.97458531,3142.3,3140.5,0.00409838]
[1767548204097,0.15918,3142.4,3140.5,0.14525395]
[1767548204304,0.15918,3142.4,3140.7,0.15927]
[1767548204891,3.185,3142.9,3140.8,0.30041557]
[1767548205102,0.97445446,3142.8,3140.9,0.14115557]
[1767548205301,3.185,3142.9,3140.9,0.30041557]
[1767548205500,0.97388182,3142.8,3140.9,0.30041557]
[1767548205697,0.13759135,3142.7,3140.9,0.30041557]
[1767548208503,0.13759135,3142.7,3141.0,0.14115557]
[1767548214495,0.13759135,3142.7,3141.0,0.15925]
[1767548214701,0.13759135,3142.7,3141.1,0.30040557]
[1767548214900,0.13759135,3142.7,3141.2,0.14115557]
[1767548233825,0.13759135,3142.7,3141.1,0.15925]
[1767548245334,0.13858458,3142.6,3141.1,0.15925]
[1767548245931,0.13858458,3142.6,3140.8,0.14021788]
[1767548247136,0.13858458,3142.5,3140.8,0.14021788]
[1767548247333,0.13858458,3142.1,3140.6,5.73487101]
[1767548247638,0.13858458,3142.1,3140.5,0.16336838]
[1767548247933,0.13858458,3142.1,3140.5,0.30358626]
[1767548248538,0.13858458,3142.1,3140.6,0.78683283]
[1767548250535,0.94602283,3142.2,3140.5,0.00409838]
[1767548250536,0.78683283,3141.6,3140.5,0.00409838]
[1767548250738,0.1380964,3141.5,3140.5,0.00409838]
[1767548250938,0.78683283,3141.9,3140.5,0.00409838]
[1767548252643,0.15919,3142.2,3140.9,0.78683283]
[1767548255745,0.15919,3142.2,3140.6,0.13202571]
[1767548255746,0.15919,3142.2,3140.6,0.91885854]
[1767548258045,0.78683283,3142.1,3140.6,0.91885854]
[1767548264746,0.94603283,3142.1,3140.6,0.13202571]
[1767548265450,0.78683283,3141.8,3140.6,0.13202571]
[1767548266447,0.78683283,3141.8,3140.5,0.00409838]
[1767548276350,0.1592,3142.0,3140.5,0.13832519]
[1767548280745,0.1592,3142.0,3140.6,0.78683283]
[1767548280950,0.1592,3142.0,3140.6,0.92734444]
[1767548284061,0.1592,3142.0,3140.6,0.14051161]
[1767548285160,0.78683283,3141.8,3140.6,0.14051161]
[1767548285561,0.78683283,3141.2,3140.5,0.00409838]
[1767548285864,0.78683283,3141.2,3140.1,5.73487101]
[1767548285865,0.26914842,3141.2,3140.1,5.73487101]
[1767548286159,0.26914842,3141.2,3139.9,0.69577085]
[1767548286851,0.26914842,3141.2,3139.9,0.69987814]
[1767548290363,0.26914842,3141.2,3139.9,0.84038975]
[1767548302473,0.15924,3141.4,3140.0,0.14051161]
[1767548302669,0.15924,3141.4,3140.1,0.92734444]
[1767548303582,0.15924,3141.4,3140.2,0.14051161]
[1767548343516,4.304,3141.7,3140.2,0.14051161]
[1767548348023,0.15921,3141.9,3140.3,0.14052279]
[1767548349428,0.15921,3141.9,3140.4,0.14052279]
[1767548352319,3.185,3142.1,3140.5,0.14052279]
[1767548364733,3.185,3142.1,3140.6,0.14052279]
[1767548366535,4.304,3142.2,3140.6,0.14052279]
[1767548367038,0.15918,3142.4,3140.8,0.14052279]
[1767548367339,4.46318,3142.4,3140.8,0.14052279]
[1767548370537,4.46318,3142.4,3141.0,0.78660306]
[1767548372441,5.24978306,3142.4,3141.0,0.78660306]
[1767548373637,4.46318,3142.4,3141.0,0.78660306]
[1767548380561,4.46318,3142.4,3140.8,0.14052279]
[1767548380562,4.304,3142.4,3141.3,0.78660306]
[1767548380754,0.13877187,3142.7,3141.6,0.78660306]
[1767548381055,4.46215,3143.0,3141.6,0.78660306]
[1767548381453,4.59692743,3143.0,3141.6,0.78660306]
[1767548381752,4.59692743,3143.0,3141.9,0.78660306]
[1767548381753,4.46215,3143.0,3141.9,0.78660306]
[1767548381957,0.15915,3143.0,3141.9,0.78660306]
[1767548382647,0.15915,3143.0,3141.7,0.13751461]
[1767548388051,0.15915,3143.0,3141.6,0.78660306]
[1767548388352,0.94575306,3143.0,3141.6,0.78660306]
[1767548388556,0.94575306,3143.0,3141.3,0.29675461]
[1767548388557,0.13477743,3142.9,3141.3,0.29675461]
[1767548390156,0.13477743,3142.8,3141.3,0.13751461]
[1767548390360,0.92138049,3142.7,3141.3,0.13751461]
[1767548390560,0.13477743,3142.6,3140.9,0.13751461]
[1767548390764,0.92138049,3142.4,3140.9,0.13751461]
[1767548390961,0.92138049,3142.4,3141.0,0.78660306]
[1767548391157,0.13477743,3142.4,3141.0,0.78660306]
[1767548392965,0.13477743,3142.3,3140.7,0.94587306]
[1767548393462,0.13477743,3142.3,3140.7,1.08338767]
[1767548396163,0.13477743,3142.3,3140.8,0.13751461]
[1767548396464,0.78660306,3142.4,3141.0,0.78660306]
[1767548397063,0.78660306,3142.4,3140.9,0.78660306]
[1767548397365,0.94578306,3142.5,3140.9,0.78660306]
[1767548398458,0.78660306,3142.2,3140.9,0.78660306]
[1767548399164,0.78660306,3142.2,3140.8,0.13751461]
[1767548399867,0.13477743,3142.4,3140.8,0.13751461]
[1767548400066,0.13477743,3142.4,3140.9,0.78660306]
[1767548401262,0.13477743,3142.4,3140.9,0.92401364]
[1767548401466,0.94578306,3142.5,3141.0,0.13741058]
[1767548401671,0.15918,3142.5,3141.0,0.13741058]
[1767548401971,0.78660306,3142.2,3140.7,0.15927]
[1767548402568,0.92443771,3142.2,3140.7,0.15927]
[1767548402769,0.78660306,3141.9,3140.7,0.15927]
[1767548403471,0.78660306,3141.6,3140.2,5.87228159]
[1767548403670,0.92443771,3141.9,3140.3,0.78660306]
[1767548403876,0.92443771,3141.9,3140.3,0.92401364]
[1767548405075,0.13783465,3141.8,3140.3,0.92401364]
[1767548409460,0.1592,3142.0,3140.4,0.13741058]
[1767548409660,0.1592,3142.0,3140.0,0.67187795]
[1767548409661,0.1592,3142.0,3140.7,0.13741058]
[1767548426279,0.78660306,3141.9,3140.7,0.13741058]
[1767548426475,0.94581306,3141.9,3140.7,0.13741058]
[1767548426780,0.78660306,3141.3,3140.3,0.13741058]
[1767548426972,0.78660306,3141.0,3140.0,0.67187795]
[1767548427171,0.00303374,3141.0,3140.0,0.67187795]
[1767548428776,0.00303374,3141.0,3140.0,0.80928853]
[1767548429276,0.00303374,3141.0,3140.1,0.13741058]
[1767548430484,0.00303374,3141.0,3140.1,0.92401364]
[1767548432677,0.00303374,3141.0,3140.1,0.13741058]
[1767548438597,0.1592,3142.0,3140.2,0.14386355]
[1767548438788,0.97508311,3141.9,3140.2,0.14386355]
[1767548438989,0.1592,3142.0,3140.2,0.14386355]
[1767548439189,0.97508234,3141.9,3140.2,0.14386355]
[1767548439389,0.1592,3142.0,3140.2,0.14386355]
[1767548439585,0.97506902,3141.9,3140.2,0.14386355]
[1767548439791,0.16295548,3142.0,3140.2,0.14386355]
[1767548446806,0.15921,3141.9,3140.2,0.14386355]
[1767548452210,0.15921,3141.9,3140.3,0.14386355]
[1767548466020,0.29668631,3141.9,3140.3,0.14386355]
[1767548470624,0.13747631,3141.8,3140.3,0.14386355]
[1767548470834,0.13747631,3141.5,3140.0,0.67187795]
[1767548471531,0.29670631,3141.5,3140.0,0.67187795]
[1767548471728,0.13747631,3141.4,3140.0,0.67187795]
[1767548472116,0.13747631,3141.3,3140.0,0.67187795]
[1767548472318,0.15924,3141.2,3140.0,0.67187795]
[1767548474541,0.15924,3141.2,3139.9,0.13895384]
[1767548474542,0.29671631,3141.2,3139.9,0.00410729]
[1767548475544,0.13747631,3141.1,3139.9,0.00410729]
[1767548476544,0.29672631,3141.1,3139.9,0.00410729]
[1767548482342,0.15925,3141.0,3139.9,0.00410729]
[1767548482544,0.29672631,3141.0,3139.9,0.00410729]
[1767548482746,0.13747631,3140.9,3139.9,0.00410729]
[1767548484650,0.29673631,3140.9,3139.9,0.00410729]
[1767548484851,0.13747631,3140.9,3139.9,0.00410729]
[1767548485046,0.13747631,3140.7,3139.0,0.13484655]
[1767548485252,0.15928,3140.5,3138.7,0.15937]
[1767548485559,0.15928,3140.5,3138.8,0.13484655]
[1767548485859,0.13747631,3140.4,3138.8,0.13484655]
[1767548486052,0.29675631,3140.4,3138.8,0.13789226]
[1767548486360,0.15929,3140.2,3138.8,0.13789226]
[1767548488457,0.29676631,3140.2,3138.8,0.13789226]
[1767548492267,0.15929,3140.2,3138.8,0.13789226]
[1767548494568,0.15929,3140.2,3138.8,0.92563114]
[1767548497972,0.15929,3140.2,3138.9,0.13828288]
[1767548514277,0.78773888,3139.5,3138.8,0.00304571]
[1767548514480,0.78773888,3139.5,3138.2,5.73487101]
[1767548514692,0.78773888,3139.5,3138.2,5.87315389]
[1767548515182,0.78773888,3139.5,3138.2,0.13828288]
[1767548515571,0.7909734,3139.5,3138.2,0.14128279]
[1767548516371,0.00323452,3139.5,3138.2,0.14128279]
[1767548516881,0.00323452,3139.5,3138.2,0.92902167]
[1767548517482,0.00323452,3139.5,3138.3,0.13828288]
[1767548518281,0.7909734,3139.5,3138.2,0.00299991]
[1767548518671,0.7909734,3139.5,3138.2,0.14128279]
[1767548519186,0.00323452,3139.5,3138.2,0.92902167]
[1767548519386,0.00323452,3139.5,3138.3,0.13828288]
[1767548521880,0.00323452,3139.5,3138.9,0.13684545]
[1767548522683,0.00323452,3139.5,3138.9,6.13684545]
[1767548522980,0.94702888,3140.3,3138.9,6.13684545]
[1767548523183,0.97809977,3140.2,3138.9,0.13684545]
[1767548523484,0.94702888,3140.3,3138.9,0.13684545]
[1767548523683,0.97809822,3140.2,3138.9,0.13684545]
[1767548523884,0.00258958,3140.2,3138.9,0.13684545]
[1767548524284,0.97809758,3140.1,3138.9,0.13684545]
[1767548524482,0.00258958,3140.2,3138.9,0.13684545]
[1767548524678,0.97808103,3140.1,3138.9,0.13684545]
[1767548524874,0.00258958,3140.2,3138.9,0.13684545]
[1767548525078,0.9780819,3140.1,3138.9,0.13684545]
[1767548525276,0.9780819,3140.1,3138.5,0.78773888]
[1767548525277,0.00258958,3140.2,3138.5,0.13684545]
[1767548525482,0.78773888,3139.7,3138.5,0.13684545]
[1767548526785,0.29901757,3139.9,3138.2,0.00299991]
[1767548526786,0.78773888,3139.4,3138.2,0.00299991]
[1767548526988,0.6147,3139.6,3138.2,0.13984536]
[1767548530382,0.6147,3139.6,3138.4,0.92458433]
[1767548530583,0.6147,3139.6,3138.5,0.13684545]
[1767548536586,0.6147,3139.6,3138.6,0.13684545]
[1767548536788,0.6147,3139.6,3138.8,0.92458433]
[1767548536984,0.6147,3139.6,3138.9,0.13684545]
[1767548537285,0.15931,3139.8,3138.9,0.13684545]
[1767548537286,4.291,3140.1,3139.1,0.78773888]
[1767548537591,0.00258958,3140.2,3139.1,0.78773888]
[1767548538090,0.00258958,3140.2,3138.9,0.13684545]
[1767548538685,0.0223,3140.1,3138.9,0.13684545]
[1767548548193,0.0223,3140.1,3138.5,0.78773888]
[1767548548194,0.0223,3140.1,3139.2,0.13684545]
[1767548549090,0.0223,3140.1,3138.8,0.13684545]
[1767548554308,0.0223,3140.1,3138.8,0.92458433]
[1767548554503,0.0223,3140.1,3138.9,0.13902006]
[1767548566717,0.16187958,3140.2,3138.9,0.13902006]
[1767548568123,0.0222,3140.1,3138.9,0.13902006]
[1767548581127,0.0222,3140.1,3138.5,0.14276768]
[1767548581128,0.1815,3140.1,3138.5,0.14276768]
[1767548581621,0.1593,3140.0,3138.5,0.14276768]
[1767548588328,0.15931,3139.9,3138.5,0.14276768]
[1767548594432,0.15931,3139.8,3138.5,0.14276768]
[1767548595839,0.0223,3139.7,3138.5,0.14276768]
[1767548597237,0.18162,3139.7,3138.5,0.14276768]
[1767548607042,0.15932,3139.6,3138.5,0.14276768]
[1767548609445,0.15933,3139.5,3138.5,0.14276768]
[1767548614857,0.0223,3139.4,3138.5,0.14276768]
[1767548641886,0.15933,3139.5,3138.5,0.14276768]
[1767548643587,0.0223,3139.4,3138.5,0.14276768]
[1767548657700,0.0223,3139.4,3138.6,0.13687637]
[1767548661202,4.4383,3140.0,3138.6,0.13687637]
[1767548661398,0.97960235,3139.9,3138.6,0.13687637]
[1767548661702,4.4373,3140.0,3138.6,0.13687637]
[1767548661901,0.97960377,3139.9,3138.6,0.13687637]
[1767548662101,4.4373,3140.0,3138.6,0.13687637]
[1767548662303,0.97961049,3139.9,3138.6,0.13687637]
[1767548662604,4.4373,3140.0,3138.6,0.13687637]
[1767548662903,0.97971376,3139.9,3138.6,0.13687637]
[1767548663099,4.4373,3140.0,3138.6,0.13687637]
[1767548663300,0.97971576,3139.9,3138.6,0.13687637]
[1767548663499,4.4373,3140.0,3138.6,0.13687637]
[1767548663699,0.97971576,3139.9,3138.6,0.13687637]
[1767548663901,4.4373,3140.0,3138.6,0.13687637]
[1767548664102,0.97971877,3139.9,3138.6,0.13687637]
[1767548664404,4.4373,3140.0,3138.6,0.13687637]
[1767548664597,0.97968463,3139.9,3138.6,0.13687637]
[1767548664797,4.4373,3140.0,3138.6,0.13687637]
[1767548665006,0.97968475,3139.9,3138.6,0.13687637]
[1767548665203,4.4373,3140.0,3138.6,0.13687637]
[1767548665504,0.97969176,3139.9,3138.6,0.13687637]
[1767548665696,4.4373,3140.0,3138.6,0.13687637]
[1767548665903,0.97969172,3139.9,3138.6,0.13687637]
[1767548666102,4.4373,3140.0,3138.6,0.13687637]
[1767548666302,0.97970104,3139.9,3138.6,0.13687637]
[1767548666504,4.4373,3140.0,3138.6,0.13687637]
[1767548666703,0.97970152,3139.9,3138.6,0.13687637]
[1767548666904,4.4373,3140.0,3138.6,0.13687637]
[1767548667206,0.97970152,3139.9,3138.6,0.13687637]
[1767548667404,4.4373,3140.0,3138.6,0.13687637]
[1767548667603,0.97971283,3139.9,3138.6,0.13687637]
[1767548667808,4.4373,3140.0,3138.6,0.13687637]
[1767548668001,0.97971283,3139.9,3138.6,0.13687637]
[1767548668306,4.4373,3140.0,3138.6,0.13687637]
[1767548668504,0.97972169,3139.9,3138.6,0.13687637]
[1767548668704,4.4373,3140.0,3138.6,0.13687637]
[1767548669004,0.97972169,3139.9,3138.6,0.13687637]
[1767548669205,4.4373,3140.0,3138.6,0.13687637]
[1767548669504,0.97972822,3139.9,3138.6,0.13687637]
[1767548669705,4.4373,3140.0,3138.6,0.13687637]
[1767548669900,0.97972817,3139.9,3138.6,0.13687637]
[1767548670096,4.4373,3140.0,3138.6,0.13687637]
[1767548670301,0.97973278,3139.9,3138.6,0.13687637]
[1767548670501,4.4373,3140.0,3138.6,0.13687637]
[1767548670702,0.97973394,3139.9,3138.6,0.13687637]
[1767548670903,4.4373,3140.0,3138.6,0.13687637]
[1767548671104,0.97973298,3139.9,3138.6,0.13687637]
[1767548671304,4.4373,3140.0,3138.6,0.13687637]
[1767548671606,0.97974049,3139.9,3138.6,0.13687637]
[1767548671797,4.4373,3140.0,3138.6,0.13687637]
[1767548672003,1.13904944,3139.9,3138.6,0.13687637]
[1767548672303,0.15931,3139.9,3138.6,0.13687637]
[1767548677714,4.281,3140.1,3138.9,0.13366976]
[1767548688821,4.4403,3140.1,3138.5,0.13366976]
[1767548689719,4.58474725,3140.1,3138.5,0.13366976]
[1767548696930,0.14444725,3140.0,3138.5,0.13366976]
[1767548697229,0.14444725,3140.0,3138.4,0.15938]
[1767548702038,0.14444725,3140.0,3138.5,0.14433654]
[1767548702339,4.285,3140.0,3138.5,0.14433654]
[1767548705237,0.00258958,3140.2,3138.3,0.78779341]
[1767548705238,0.00258958,3140.2,3138.8,0.14433654]
[1767548705828,0.00258958,3140.2,3138.9,0.14433654]
[1767548740584,0.00258958,3140.2,3139.4,0.13120216]
[1767548742574,0.00258958,3140.2,3139.0,0.78749973]
[1767548742575,0.15927,3140.6,3139.7,0.13120216]
[1767548743666,0.16255322,3140.6,3139.3,0.13120216]
[1767548753786,0.16255322,3140.6,3139.6,0.13120216]
[1767548762688,0.00328322,3140.6,3139.6,0.13120216]
[1767548762893,0.00328322,3140.6,3139.8,0.92303072]
[1767548764187,0.00328322,3140.6,3139.8,0.13553099]
[1767548771001,0.00328322,3140.6,3139.8,0.92303072]
[1767548771208,0.69146027,3141.0,3139.9,0.13553099]
[1767548771408,0.15925,3141.0,3139.9,0.13553099]
[1767548772300,0.16201586,3141.0,3139.9,0.13553099]
[1767548789024,0.00276586,3141.0,3139.9,0.13553099]
[1767548789208,0.15923,3141.5,3140.4,0.92303072]
[1767548790221,0.16314192,3141.5,3140.4,0.92534489]
[1767548792526,0.00391192,3141.5,3140.5,0.13686749]
[1767548831838,0.1592,3142.1,3140.5,0.13686749]
[1767548832040,0.1592,3142.1,3140.6,0.13317479]
[1767548832743,0.16262237,3142.1,3140.6,0.13317479]
[1767548848758,0.00342237,3142.1,3140.6,0.13317479]
[1767548848952,0.1465186,3142.1,3140.6,0.13317479]
[1767548849257,0.15922,3141.6,3140.6,0.13317479]
[1767548849758,0.15923,3141.5,3140.4,0.00231417]
[1767548849954,4.43023,3141.4,3140.4,0.00231417]
[1767548851054,10.41317486,3141.4,3139.8,0.13201311]
[1767548851257,0.14217486,3141.3,3139.8,0.13201311]
[1767548852267,0.15925,3141.0,3139.8,0.13524059]
[1767548853758,0.15922,3141.6,3139.8,0.13524059]
[1767548854058,0.15922,3141.6,3140.1,0.13201311]
[1767548854465,0.15922,3141.6,3140.2,0.13106621]
[1767548854764,0.15922,3141.6,3140.3,0.13106621]
[1767548860462,0.13506514,3141.5,3140.0,4.00418357]
[1767548860868,0.13506514,3141.5,3140.0,4.13524978]
[1767548861368,0.15923,3141.4,3140.0,4.13524978]
[1767548862668,0.94646149,3141.4,3140.0,4.13524978]
[1767548863067,0.78723149,3141.1,3140.0,4.13524978]
[1767548863265,0.78723149,3141.1,3140.0,0.13106621]
[1767548866869,0.15924,3141.2,3140.0,0.13106621]
[1767548867566,0.78723149,3141.7,3140.2,0.13106621]
[1767548867770,4.43021,3141.8,3140.4,0.9182977]
[1767548867971,0.15922,3141.7,3140.4,0.9182977]
[1767548870171,0.94645149,3141.7,3140.4,0.13106621]
[1767548870578,0.6362,3141.6,3140.4,0.13106621]
[1767548882081,0.6362,3141.6,3140.4,0.9182977]
[1767548883685,4.42922,3141.7,3140.4,0.9182977]
[1767548883888,0.15922,3141.7,3140.5,0.13656691]